[Event "Live Chess"]
[Site "Chess.com"]
[Date "2024.06.02"]
[Round "-"]
[White "PETROMICH1967"]
[Black "nffc11"]
[Result "0-1"]
[WhiteElo "1351"]
[BlackElo "1997"]
[TimeControl "300"]
[EndTime "6:00:57 PDT"]
[Termination "nffc11 won on time"]

1. e4 {[%clk 0:04:55.1]} 1... c6 {[%clk 0:04:58.8]} 2. d4 {[%clk 0:04:52.2]}
2... d5 {[%clk 0:04:58.7]} 3. Nc3 {[%clk 0:04:50.7]} 3... dxe4 {[%clk
0:04:57.1]} 4. Nxe4 {[%clk 0:04:49.4]} 4... Nd7 {[%clk 0:04:56.8]} 5. c4 {[%clk
0:04:46]} 5... Ngf6 {[%clk 0:04:55.6]} 6. Ng3 {[%clk 0:04:39.8]} 6... g6 {[%clk
0:04:52.8]} 7. Bd3 {[%clk 0:04:34.6]} 7... Bg7 {[%clk 0:04:52]} 8. Nf3 {[%clk
0:04:33.6]} 8... O-O {[%clk 0:04:51.4]} 9. O-O {[%clk 0:04:31.4]} 9... Re8
{[%clk 0:04:45.6]} 10. b3 {[%clk 0:04:28.3]} 10... e5 {[%clk 0:04:38.5]} 11.
Nxe5 {[%clk 0:04:09.8]} 11... Nxe5 {[%clk 0:04:36.7]} 12. dxe5 {[%clk 0:04:08]}
12... Rxe5 {[%clk 0:04:34.2]} 13. Bb2 {[%clk 0:04:02.6]} 13... Re8 {[%clk
0:04:29.5]} 14. Rb1 {[%clk 0:03:58.8]} 14... Be6 {[%clk 0:04:18.7]} 15. Qc2
{[%clk 0:03:53.3]} 15... Qc7 {[%clk 0:04:14.5]} 16. a4 {[%clk 0:03:41.8]} 16...
a5 {[%clk 0:04:11.6]} 17. Rfe1 {[%clk 0:03:39.8]} 17... Rad8 {[%clk 0:04:09.3]}
18. Bf1 {[%clk 0:03:35.6]} 18... h5 {[%clk 0:04:04.1]} 19. Rxe6 {[%clk
0:03:06.1]} 19... Rxe6 {[%clk 0:03:55.3]} 20. c5 {[%clk 0:03:00]} 20... Rde8
{[%clk 0:03:40]} 21. Qc3 {[%clk 0:02:39.6]} 21... h4 {[%clk 0:03:19.6]} 22. Nh1
{[%clk 0:02:22.2]} 22... Nh5 {[%clk 0:02:45.7]} 23. Qh3 {[%clk 0:01:55.9]} 23...
Bxb2 {[%clk 0:02:30.2]} 24. Rxb2 {[%clk 0:01:52.7]} 24... Qf4 {[%clk 0:02:01.3]}
25. g3 {[%clk 0:01:38.8]} 25... hxg3 {[%clk 0:01:55.7]} 26. hxg3 {[%clk
0:01:37]} 26... Qe5 {[%clk 0:01:47.3]} 27. Re2 {[%clk 0:01:30.2]} 27... Qxc5
{[%clk 0:01:41.5]} 28. Rxe6 {[%clk 0:01:29]} 28... Rxe6 {[%clk 0:01:41.4]} 29.
Qg4 {[%clk 0:01:20.7]} 29... Qc3 {[%clk 0:01:17.4]} 30. Bc4 {[%clk 0:01:03.2]}
30... Qe1+ {[%clk 0:00:58.3]} 31. Kh2 {[%clk 0:00:55.9]} 31... Rf6 {[%clk
0:00:44.6]} 32. Qc8+ {[%clk 0:00:40.2]} 32... Kg7 {[%clk 0:00:42.7]} 33. Qg4
{[%clk 0:00:20.8]} 33... Rxf2+ {[%clk 0:00:34.8]} 34. Nxf2 {[%clk 0:00:19.7]}
34... Qxf2+ {[%clk 0:00:34.6]} 35. Kh3 {[%clk 0:00:15]} 35... Qg1 {[%clk
0:00:25.2]} 36. Qf3 {[%clk 0:00:06.7]} 36... Nf6 {[%clk 0:00:17.2]} 0-1

[Event "Live Chess"]
[Site "Chess.com"]
[Date "2024.06.02"]
[Round "-"]
[White "BishopofWells"]
[Black "GerardATHart"]
[Result "1-0"]
[WhiteElo "1557"]
[BlackElo "1363"]
[TimeControl "300"]
[EndTime "6:01:05 PDT"]
[Termination "BishopofWells won by checkmate"]

1. d4 {[%clk 0:04:55.1]} 1... f5 {[%clk 0:04:58]} 2. c4 {[%clk 0:04:53]} 2...
Nf6 {[%clk 0:04:56.4]} 3. Nc3 {[%clk 0:04:51.8]} 3... g6 {[%clk 0:04:52.8]} 4.
Bg5 {[%clk 0:04:47.7]} 4... Bg7 {[%clk 0:04:51.3]} 5. Nf3 {[%clk 0:04:45]} 5...
d6 {[%clk 0:04:48.8]} 6. h3 {[%clk 0:04:42.2]} 6... c6 {[%clk 0:04:46.9]} 7. e3
{[%clk 0:04:40.8]} 7... Nbd7 {[%clk 0:04:44.2]} 8. Bd3 {[%clk 0:04:39.3]} 8...
O-O {[%clk 0:04:41.4]} 9. O-O {[%clk 0:04:38]} 9... Re8 {[%clk 0:04:39]} 10. e4
{[%clk 0:03:58.6]} 10... fxe4 {[%clk 0:04:26.4]} 11. Bxe4 {[%clk 0:03:45.3]}
11... e5 {[%clk 0:04:23.1]} 12. dxe5 {[%clk 0:03:39.4]} 12... Nxe5 {[%clk
0:04:21.5]} 13. Qe2 {[%clk 0:03:23.9]} 13... h6 {[%clk 0:04:06]} 14. Bxf6 {[%clk
0:03:17.9]} 14... Qxf6 {[%clk 0:04:03.3]} 15. Nxe5 {[%clk 0:02:58]} 15... Rxe5
{[%clk 0:04:00.2]} 16. Qd3 {[%clk 0:02:56.3]} 16... Bf5 {[%clk 0:03:48.9]} 17.
Rad1 {[%clk 0:02:50]} 17... Rae8 {[%clk 0:03:37.7]} 18. Bxf5 {[%clk 0:02:28.5]}
18... Qxf5 {[%clk 0:03:31.7]} 19. Qxd6 {[%clk 0:02:27.2]} 19... R5e6 {[%clk
0:03:21.1]} 20. Qa3 {[%clk 0:02:15.7]} 20... Be5 {[%clk 0:03:11.3]} 21. Nb1
{[%clk 0:01:13.7]} 21... Qf4 {[%clk 0:02:43]} 22. g3 {[%clk 0:01:10.9]} 22...
Qg5 {[%clk 0:02:37]} 23. Rd3 {[%clk 0:01:00.5]} 23... Qh5 {[%clk 0:02:25.7]} 24.
Kh2 {[%clk 0:00:56.4]} 24... g5 {[%clk 0:02:20.8]} 25. f3 {[%clk 0:00:38.4]}
25... Bxg3+ {[%clk 0:02:08.2]} 26. Kxg3 {[%clk 0:00:35.7]} 26... Re2 {[%clk
0:02:04.2]} 27. Rd4 {[%clk 0:00:19.3]} 27... Rc2 {[%clk 0:01:48.8]} 28. Qd3
{[%clk 0:00:16.9]} 28... Ree2 {[%clk 0:01:44.2]} 29. Rd8+ {[%clk 0:00:12.9]}
29... Kf7 {[%clk 0:01:42.7]} 30. Qd7+ {[%clk 0:00:10.2]} 30... Re7 {[%clk
0:01:41.1]} 31. Qf5+ {[%clk 0:00:09.1]} 31... Kg7 {[%clk 0:01:36.8]} 32. Qf8+
{[%clk 0:00:06.2]} 32... Kh7 {[%clk 0:01:34.9]} 33. Qg8# {[%clk 0:00:05.2]} 1-0

[Event "Live Chess"]
[Site "Chess.com"]
[Date "2024.06.02"]
[Round "-"]
[White "ACM42"]
[Black "Andriy_Yaremovych"]
[Result "1-0"]
[WhiteElo "2214"]
[BlackElo "1665"]
[TimeControl "300"]
[EndTime "6:01:05 PDT"]
[Termination "ACM42 won by resignation"]

1. e4 {[%clk 0:04:59.3]} 1... b6 {[%clk 0:04:58.2]} 2. d4 {[%clk 0:04:52]} 2...
Bb7 {[%clk 0:04:58.1]} 3. Bd3 {[%clk 0:04:51.3]} 3... Nf6 {[%clk 0:04:55]} 4.
Nc3 {[%clk 0:04:48.1]} 4... e6 {[%clk 0:04:47.2]} 5. Nf3 {[%clk 0:04:46.6]} 5...
Bb4 {[%clk 0:04:45.7]} 6. Qe2 {[%clk 0:04:43.9]} 6... Bxc3+ {[%clk 0:04:44]} 7.
bxc3 {[%clk 0:04:42.8]} 7... Nc6 {[%clk 0:04:42.9]} 8. O-O {[%clk 0:04:41.4]}
8... Qe7 {[%clk 0:04:41]} 9. e5 {[%clk 0:04:40.3]} 9... Nd5 {[%clk 0:04:39.8]}
10. a3 {[%clk 0:04:39.3]} 10... O-O-O {[%clk 0:04:37.6]} 11. c4 {[%clk
0:04:38.2]} 11... f5 {[%clk 0:04:33.7]} 12. cxd5 {[%clk 0:04:36.7]} 12... exd5
{[%clk 0:04:32.8]} 13. Bxf5 {[%clk 0:04:35.7]} 13... h6 {[%clk 0:04:31.9]} 14.
Bh3 {[%clk 0:04:26.9]} 14... g5 {[%clk 0:04:30.6]} 15. Bf5 {[%clk 0:04:24.2]}
15... Kb8 {[%clk 0:04:29.2]} 16. g4 {[%clk 0:04:21.4]} 16... Rdf8 {[%clk
0:04:26.3]} 17. h3 {[%clk 0:04:17.4]} 17... Qg7 {[%clk 0:04:25.2]} 18. Qd3
{[%clk 0:04:14.6]} 1-0

[Event "Live Chess"]
[Site "Chess.com"]
[Date "2024.06.02"]
[Round "-"]
[White "slava_ukr"]
[Black "agamilewska"]
[Result "1-0"]
[WhiteElo "2337"]
[BlackElo "1768"]
[TimeControl "300"]
[EndTime "6:01:26 PDT"]
[Termination "slava_ukr won by resignation"]

1. e4 {[%clk 0:04:58.1]} 1... e5 {[%clk 0:04:58.9]} 2. Nf3 {[%clk 0:04:56.9]}
2... Bc5 {[%clk 0:04:56.7]} 3. Nxe5 {[%clk 0:04:55.1]} 3... Qe7 {[%clk
0:04:54.8]} 4. d4 {[%clk 0:04:48.6]} 4... d6 {[%clk 0:04:52.9]} 5. Nf3 {[%clk
0:04:42.7]} 5... Qxe4+ {[%clk 0:04:49.4]} 6. Be2 {[%clk 0:04:41.9]} 6... Bb6
{[%clk 0:04:43.4]} 7. O-O {[%clk 0:04:40.8]} 7... Nf6 {[%clk 0:04:42.2]} 8. Bb5+
{[%clk 0:04:38.6]} 8... c6 {[%clk 0:04:36.6]} 9. Re1 {[%clk 0:04:37.3]} 9...
cxb5 {[%clk 0:04:34.8]} 10. Rxe4+ {[%clk 0:04:36.2]} 10... Nxe4 {[%clk 0:04:34]}
11. Qe2 {[%clk 0:04:32]} 11... f5 {[%clk 0:04:23.8]} 12. Nbd2 {[%clk 0:04:26.3]}
12... O-O {[%clk 0:04:20.9]} 13. Nxe4 {[%clk 0:04:24.6]} 13... fxe4 {[%clk
0:04:20.1]} 14. Qxe4 {[%clk 0:04:23.6]} 14... Nc6 {[%clk 0:04:17.1]} 15. Bf4
{[%clk 0:04:13.8]} 15... Bf5 {[%clk 0:04:15]} 16. Qd5+ {[%clk 0:04:12.1]} 16...
Kh8 {[%clk 0:04:13.7]} 17. Bxd6 {[%clk 0:04:06.2]} 17... Rad8 {[%clk 0:04:10.8]}
18. Ng5 {[%clk 0:03:45]} 18... Bxc2 {[%clk 0:04:01.9]} 19. Nf7+ {[%clk
0:03:41.6]} 1-0

[Event "Live Chess"]
[Site "Chess.com"]
[Date "2024.06.02"]
[Round "-"]
[White "KeithArkell"]
[Black "resipsa6"]
[Result "1-0"]
[WhiteElo "2420"]
[BlackElo "2014"]
[TimeControl "300"]
[EndTime "6:01:33 PDT"]
[Termination "KeithArkell won on time"]

1. d4 {[%clk 0:04:57.4]} 1... d5 {[%clk 0:04:57.5]} 2. c4 {[%clk 0:04:39.7]}
2... c6 {[%clk 0:04:55.6]} 3. Nf3 {[%clk 0:04:38]} 3... Nf6 {[%clk 0:04:54.7]}
4. Nc3 {[%clk 0:04:36.6]} 4... e6 {[%clk 0:04:54]} 5. cxd5 {[%clk 0:04:35.4]}
5... exd5 {[%clk 0:04:52.3]} 6. Qc2 {[%clk 0:04:34.4]} 6... Bd6 {[%clk
0:04:50.1]} 7. Bg5 {[%clk 0:04:33.1]} 7... O-O {[%clk 0:04:48.5]} 8. e3 {[%clk
0:04:31.3]} 8... h6 {[%clk 0:04:44.8]} 9. Bh4 {[%clk 0:04:29.7]} 9... Nbd7
{[%clk 0:04:40.8]} 10. Bd3 {[%clk 0:04:28.6]} 10... Qc7 {[%clk 0:04:35.8]} 11.
O-O {[%clk 0:04:27.1]} 11... Re8 {[%clk 0:04:31.4]} 12. Rac1 {[%clk 0:04:26.1]}
12... a6 {[%clk 0:04:23.2]} 13. Bg3 {[%clk 0:04:20.9]} 13... Bxg3 {[%clk
0:04:21.1]} 14. hxg3 {[%clk 0:04:20.1]} 14... Ne4 {[%clk 0:04:14.6]} 15. Nxe4
{[%clk 0:04:18.1]} 15... dxe4 {[%clk 0:04:10.6]} 16. Bxe4 {[%clk 0:04:17.4]}
16... Nf6 {[%clk 0:04:07.8]} 17. Bf5 {[%clk 0:04:16.3]} 17... Bxf5 {[%clk
0:04:02.9]} 18. Qxf5 {[%clk 0:04:15.1]} 18... Qb6 {[%clk 0:03:59.3]} 19. Rc2
{[%clk 0:04:13.2]} 19... Rad8 {[%clk 0:03:54]} 20. Rfc1 {[%clk 0:04:11.7]} 20...
Qb4 {[%clk 0:03:45]} 21. a3 {[%clk 0:04:06.9]} 21... Qd6 {[%clk 0:03:42.2]} 22.
b4 {[%clk 0:04:03.2]} 22... Nd5 {[%clk 0:03:32.7]} 23. Ne5 {[%clk 0:03:59.5]}
23... Qe7 {[%clk 0:03:29.8]} 24. Nd3 {[%clk 0:03:52.9]} 24... Nxe3 {[%clk
0:03:17.4]} 25. fxe3 {[%clk 0:03:50.7]} 25... Qxe3+ {[%clk 0:03:16.3]} 26. Nf2
{[%clk 0:03:49.9]} 26... Rd5 {[%clk 0:02:57.1]} 27. Qf3 {[%clk 0:03:37.2]} 27...
Qe6 {[%clk 0:02:05.4]} 28. Rd2 {[%clk 0:03:28.4]} 28... Rf5 {[%clk 0:02:03.4]}
29. Qd3 {[%clk 0:03:25.8]} 29... Rh5 {[%clk 0:01:59.8]} 30. Rf1 {[%clk
0:03:21.1]} 30... a5 {[%clk 0:01:41.7]} 31. Nh3 {[%clk 0:03:19]} 31... Qd6
{[%clk 0:01:21.2]} 32. Nf4 {[%clk 0:03:14.3]} 32... Rg5 {[%clk 0:01:16.4]} 33.
Re2 {[%clk 0:03:09.4]} 33... Rxe2 {[%clk 0:01:08.9]} 34. Nxe2 {[%clk 0:03:09.3]}
34... axb4 {[%clk 0:01:07.1]} 35. axb4 {[%clk 0:03:07.9]} 35... Qxb4 {[%clk
0:01:03.3]} 36. Qe4 {[%clk 0:03:04.8]} 36... Qc4 {[%clk 0:00:40.4]} 37. Qe8+
{[%clk 0:03:00.2]} 37... Kh7 {[%clk 0:00:39.4]} 38. Rxf7 {[%clk 0:02:57.5]}
38... Qd3 {[%clk 0:00:19.1]} 39. Rf3 {[%clk 0:02:48.7]} 39... Qd1+ {[%clk
0:00:17.3]} 40. Kf2 {[%clk 0:02:47.3]} 40... Qa4 {[%clk 0:00:09.7]} 41. Qe4+
{[%clk 0:02:45.9]} 41... Kg8 {[%clk 0:00:08.3]} 42. Qe6+ {[%clk 0:02:41.7]}
42... Kh7 {[%clk 0:00:07.4]} 43. Qe4+ {[%clk 0:02:35.7]} 43... Kg8 {[%clk
0:00:06.3]} 44. Rf5 {[%clk 0:02:29.5]} 44... Rxf5+ {[%clk 0:00:03.2]} 45. Qxf5
{[%clk 0:02:28.7]} 45... Qc4 {[%clk 0:00:02]} 46. Qe5 {[%clk 0:02:25.2]} 46...
Qc2 {[%clk 0:00:00.6]} 47. Ke3 {[%clk 0:02:23.8]} 1-0

[Event "Live Chess"]
[Site "Chess.com"]
[Date "2024.06.02"]
[Round "-"]
[White "Crowded_House"]
[Black "ProfPoisson"]
[Result "1/2-1/2"]
[WhiteElo "1632"]
[BlackElo "1320"]
[TimeControl "300"]
[EndTime "6:01:50 PDT"]
[Termination "Game drawn - timeout vs insufficient material"]

1. d4 {[%clk 0:04:56.3]} 1... e6 {[%clk 0:04:58]} 2. Nf3 {[%clk 0:04:53.7]} 2...
f5 {[%clk 0:04:56.5]} 3. Bg5 {[%clk 0:04:52.5]} 3... Nf6 {[%clk 0:04:53.3]} 4.
e3 {[%clk 0:04:50.6]} 4... Be7 {[%clk 0:04:48.7]} 5. c4 {[%clk 0:04:46.4]} 5...
Ne4 {[%clk 0:04:46.4]} 6. Bxe7 {[%clk 0:04:44.6]} 6... Qxe7 {[%clk 0:04:43.6]}
7. Nbd2 {[%clk 0:04:44.2]} 7... O-O {[%clk 0:04:30]} 8. Bd3 {[%clk 0:04:31]}
8... Nxd2 {[%clk 0:04:23.5]} 9. Qxd2 {[%clk 0:04:26.6]} 9... d6 {[%clk 0:04:23]}
10. O-O {[%clk 0:04:24.2]} 10... Nd7 {[%clk 0:04:16.1]} 11. Rfe1 {[%clk
0:04:23.5]} 11... e5 {[%clk 0:04:11.5]} 12. dxe5 {[%clk 0:04:21.3]} 12... dxe5
{[%clk 0:04:09.3]} 13. Bc2 {[%clk 0:04:14.1]} 13... e4 {[%clk 0:04:00.1]} 14.
Qd5+ {[%clk 0:04:06]} 14... Kh8 {[%clk 0:03:56.9]} 15. Nd4 {[%clk 0:04:01.8]}
15... Nb6 {[%clk 0:03:43.1]} 16. Qb5 {[%clk 0:03:47.8]} 16... Rf6 {[%clk
0:03:39.4]} 17. Bb3 {[%clk 0:03:33.4]} 17... Rh6 {[%clk 0:03:36.7]} 18. h3
{[%clk 0:03:31.6]} 18... Qg5 {[%clk 0:03:23.1]} 19. Kf1 {[%clk 0:03:08.9]} 19...
Bd7 {[%clk 0:03:19]} 20. Qe5 {[%clk 0:03:02.6]} 20... c6 {[%clk 0:02:43.1]} 21.
c5 {[%clk 0:02:56.4]} 21... Re8 {[%clk 0:02:39.6]} 22. Qg3 {[%clk 0:02:51.9]}
22... Qxg3 {[%clk 0:02:31.7]} 23. fxg3 {[%clk 0:02:51]} 23... Nd5 {[%clk
0:02:29.6]} 24. Bxd5 {[%clk 0:02:49.1]} 24... cxd5 {[%clk 0:02:27.2]} 25. b4
{[%clk 0:02:43.7]} 25... g5 {[%clk 0:02:19.4]} 26. Rad1 {[%clk 0:02:41.4]} 26...
f4 {[%clk 0:02:03.3]} 27. gxf4 {[%clk 0:02:36.6]} 27... g4 {[%clk 0:01:57.9]}
28. hxg4 {[%clk 0:02:22.1]} 28... Bxg4 {[%clk 0:01:56.4]} 29. Rd2 {[%clk
0:02:21.3]} 29... Rh1+ {[%clk 0:01:40.7]} 30. Kf2 {[%clk 0:02:20.2]} 30... Rh2
{[%clk 0:01:35.9]} 31. Rc2 {[%clk 0:02:09.7]} 31... Rg8 {[%clk 0:01:31.7]} 32.
Rcc1 {[%clk 0:02:03]} 32... Bh3 {[%clk 0:01:29.5]} 33. Rg1 {[%clk 0:02:01.8]}
33... Bxg2 {[%clk 0:01:24.3]} 34. Ke1 {[%clk 0:01:53.4]} 34... Bh3 {[%clk
0:01:12.5]} 35. Rxg8+ {[%clk 0:01:52.2]} 35... Kxg8 {[%clk 0:01:11.1]} 36. c6
{[%clk 0:01:50.3]} 36... Rh1+ {[%clk 0:01:07.9]} 37. Kd2 {[%clk 0:01:48.8]}
37... Rxc1 {[%clk 0:01:04.1]} 38. Kxc1 {[%clk 0:01:48.1]} 38... bxc6 {[%clk
0:01:01.8]} 39. Nxc6 {[%clk 0:01:47.3]} 39... h5 {[%clk 0:00:57]} 40. Ne7+
{[%clk 0:01:33.1]} 40... Kf7 {[%clk 0:00:51.2]} 41. Nxd5 {[%clk 0:01:32.6]}
41... Bf1 {[%clk 0:00:47.6]} 42. Nc3 {[%clk 0:01:28.7]} 42... h4 {[%clk
0:00:46.3]} 43. Nxe4 {[%clk 0:01:27.5]} 43... h3 {[%clk 0:00:43]} 44. Ng3 {[%clk
0:01:26.3]} 44... h2 {[%clk 0:00:39.9]} 45. Kd2 {[%clk 0:01:24.8]} 45... Bc4
{[%clk 0:00:35]} 46. a3 {[%clk 0:01:21]} 46... Bd5 {[%clk 0:00:29.5]} 47. e4
{[%clk 0:01:18.5]} 47... Bxe4 {[%clk 0:00:27.3]} 48. Ke3 {[%clk 0:01:15.9]}
48... h1=Q {[%clk 0:00:19.2]} 49. Nxh1 {[%clk 0:01:15.2]} 49... Bxh1 {[%clk
0:00:17.8]} 50. Kd4 {[%clk 0:01:14.7]} 50... Kf6 {[%clk 0:00:15.4]} 51. a4
{[%clk 0:01:12.8]} 51... Kf5 {[%clk 0:00:15.3]} 52. Ke3 {[%clk 0:01:10.7]} 52...
Bd5 {[%clk 0:00:12.4]} 53. a5 {[%clk 0:01:09]} 53... Bc4 {[%clk 0:00:10.7]} 54.
Kd4 {[%clk 0:01:06.4]} 54... Bb5 {[%clk 0:00:07.7]} 55. Ke3 {[%clk 0:01:04.6]}
55... a6 {[%clk 0:00:05.8]} 56. Kf3 {[%clk 0:01:02]} 56... Bc4 {[%clk
0:00:04.5]} 57. Kg3 {[%clk 0:01:00.3]} 57... Bb5 {[%clk 0:00:04.4]} 58. Kf3
{[%clk 0:00:58.2]} 58... Bc4 {[%clk 0:00:04.3]} 59. Kf2 {[%clk 0:00:56.2]} 59...
Bb5 {[%clk 0:00:04.2]} 60. Ke3 {[%clk 0:00:55.1]} 60... Bc4 {[%clk 0:00:04.1]}
61. Kd4 {[%clk 0:00:54.6]} 61... Bb5 {[%clk 0:00:04]} 62. Kc5 {[%clk 0:00:54]}
62... Bc4 {[%clk 0:00:03.9]} 63. Kb6 {[%clk 0:00:53.6]} 63... Bb5 {[%clk
0:00:03.8]} 64. Kc5 {[%clk 0:00:52.9]} 64... Kxf4 {[%clk 0:00:03.7]} 65. Kd6
{[%clk 0:00:52.4]} 65... Ke4 {[%clk 0:00:03]} 66. Ke7 {[%clk 0:00:52]} 66... Kd4
{[%clk 0:00:01.2]} 67. Kf6 {[%clk 0:00:51.4]} 67... Kc4 {[%clk 0:00:01.1]} 68.
Ke5 {[%clk 0:00:50.9]} 68... Kxb4 {[%clk 0:00:01]} 69. Ke4 {[%clk 0:00:50.1]}
69... Kxa5 {[%clk 0:00:00.7]} 70. Ke3 {[%clk 0:00:49.3]} 70... Kb4 {[%clk
0:00:00.5]} 71. Kd2 {[%clk 0:00:49]} 1/2-1/2

[Event "Live Chess"]
[Site "Chess.com"]
[Date "2024.06.02"]
[Round "-"]
[White "BostonStrangler"]
[Black "grillage"]
[Result "1-0"]
[WhiteElo "2130"]
[BlackElo "1862"]
[TimeControl "300"]
[EndTime "6:02:11 PDT"]
[Termination "BostonStrangler won by resignation"]

1. e4 {[%clk 0:04:55.8]} 1... d5 {[%clk 0:04:58.9]} 2. d4 {[%clk 0:04:52.8]}
2... e6 {[%clk 0:04:54.4]} 3. e5 {[%clk 0:04:49.3]} 3... c5 {[%clk 0:04:52.7]}
4. c3 {[%clk 0:04:48.9]} 4... Nc6 {[%clk 0:04:51.8]} 5. Nf3 {[%clk 0:04:48.4]}
5... Bd7 {[%clk 0:04:50.9]} 6. a3 {[%clk 0:04:44.9]} 6... Nge7 {[%clk
0:04:47.9]} 7. b4 {[%clk 0:04:43]} 7... cxd4 {[%clk 0:04:46.5]} 8. cxd4 {[%clk
0:04:41.8]} 8... Nf5 {[%clk 0:04:45.6]} 9. h4 {[%clk 0:04:35.6]} 9... Qb6 {[%clk
0:04:39.4]} 10. Be3 {[%clk 0:04:31.3]} 10... Rc8 {[%clk 0:04:24.5]} 11. g4
{[%clk 0:04:14.1]} 11... Nxe3 {[%clk 0:04:22.7]} 12. fxe3 {[%clk 0:04:13.2]}
12... Be7 {[%clk 0:04:03]} 13. Nbd2 {[%clk 0:04:09.5]} 13... f6 {[%clk
0:03:40.4]} 14. exf6 {[%clk 0:04:06.6]} 14... Bxf6 {[%clk 0:03:38.6]} 15. g5
{[%clk 0:03:59.8]} 15... Be7 {[%clk 0:03:36.8]} 16. Bd3 {[%clk 0:03:51.8]} 16...
Bd6 {[%clk 0:03:32.9]} 17. b5 {[%clk 0:03:41.4]} 17... Bg3+ {[%clk 0:03:28.9]}
18. Ke2 {[%clk 0:03:40.6]} 18... Na5 {[%clk 0:03:24.7]} 19. a4 {[%clk 0:03:38]}
19... O-O {[%clk 0:03:14.1]} 20. Rg1 {[%clk 0:03:14.3]} 20... Bb8 {[%clk
0:03:09.2]} 21. Qb1 {[%clk 0:03:02]} 21... g6 {[%clk 0:02:13]} 22. Bxg6 {[%clk
0:02:58.4]} 22... hxg6 {[%clk 0:02:07]} 23. Qxg6+ {[%clk 0:02:57.3]} 23... Kh8
{[%clk 0:02:05.8]} 24. Qh6+ {[%clk 0:02:54.6]} 24... Kg8 {[%clk 0:02:04.1]} 25.
g6 {[%clk 0:02:53.9]} 25... Rf5 {[%clk 0:01:46.8]} 26. Qh7+ {[%clk 0:02:49.6]}
26... Kf8 {[%clk 0:01:46]} 27. g7+ {[%clk 0:02:48.9]} 27... Ke7 {[%clk
0:01:41.3]} 28. g8=Q+ {[%clk 0:02:23.7]} 28... Kd6 {[%clk 0:01:40.3]} 29. Qxd7+
{[%clk 0:02:13.2]} 29... Kxd7 {[%clk 0:01:35.8]} 30. Rg7+ {[%clk 0:02:12.7]}
30... Kd6 {[%clk 0:01:31.8]} 31. Qxc8 {[%clk 0:02:11]} 1-0

[Event "Live Chess"]
[Site "Chess.com"]
[Date "2024.06.02"]
[Round "-"]
[White "GMMickeyAdams"]
[Black "gmnorfolk"]
[Result "1-0"]
[WhiteElo "2800"]
[BlackElo "2141"]
[TimeControl "300"]
[EndTime "6:02:14 PDT"]
[Termination "GMMickeyAdams won on time"]

1. d4 {[%clk 0:04:57.3]} 1... Nf6 {[%clk 0:04:58.4]} 2. Bg5 {[%clk 0:04:55.5]}
2... d5 {[%clk 0:04:53.3]} 3. e3 {[%clk 0:04:54.2]} 3... c5 {[%clk 0:04:50.6]}
4. Bxf6 {[%clk 0:04:47.6]} 4... gxf6 {[%clk 0:04:49.1]} 5. dxc5 {[%clk
0:04:43.5]} 5... Nc6 {[%clk 0:04:37.7]} 6. Nf3 {[%clk 0:04:38.6]} 6... e6 {[%clk
0:04:36.2]} 7. Be2 {[%clk 0:04:36.2]} 7... Bxc5 {[%clk 0:04:34.4]} 8. O-O {[%clk
0:04:35.6]} 8... O-O {[%clk 0:04:32.9]} 9. c4 {[%clk 0:04:30.2]} 9... dxc4
{[%clk 0:04:31.3]} 10. Nbd2 {[%clk 0:04:29.8]} 10... c3 {[%clk 0:04:29.5]} 11.
bxc3 {[%clk 0:04:28.3]} 11... Bd7 {[%clk 0:04:24.9]} 12. Nd4 {[%clk 0:04:24.6]}
12... Rc8 {[%clk 0:04:20.1]} 13. Bf3 {[%clk 0:04:22.9]} 13... Qe7 {[%clk
0:04:14.6]} 14. Ne4 {[%clk 0:04:20.1]} 14... f5 {[%clk 0:04:10.4]} 15. Nxc5
{[%clk 0:04:14.7]} 15... Qxc5 {[%clk 0:04:08.9]} 16. Nxf5 {[%clk 0:03:45.8]}
16... Qxf5 {[%clk 0:04:04.3]} 17. Qxd7 {[%clk 0:03:42.8]} 17... Ne5 {[%clk
0:04:03.4]} 18. Qxb7 {[%clk 0:03:41.2]} 18... Nxf3+ {[%clk 0:03:59.3]} 19. Qxf3
{[%clk 0:03:40]} 19... Qxf3 {[%clk 0:03:56.9]} 20. gxf3 {[%clk 0:03:39.2]} 20...
Rxc3 {[%clk 0:03:56.3]} 21. Rfd1 {[%clk 0:03:28.6]} 21... Rfc8 {[%clk
0:03:54.6]} 22. Rd7 {[%clk 0:03:25.2]} 22... R8c7 {[%clk 0:03:47.8]} 23. Rad1
{[%clk 0:03:20.6]} 23... Rxd7 {[%clk 0:03:43]} 24. Rxd7 {[%clk 0:03:18.6]} 24...
a5 {[%clk 0:03:42.5]} 25. a4 {[%clk 0:03:12.1]} 25... Rc4 {[%clk 0:03:40.1]} 26.
Rd4 {[%clk 0:03:10.5]} 26... Rc2 {[%clk 0:02:27.2]} 27. Rg4+ {[%clk 0:03:04.8]}
27... Kf8 {[%clk 0:02:23.2]} 28. Kg2 {[%clk 0:03:00]} 28... Rb2 {[%clk
0:02:21.1]} 29. Kg3 {[%clk 0:02:53.1]} 29... Rb4 {[%clk 0:02:16.1]} 30. Rd4
{[%clk 0:02:40.2]} 30... Ke7 {[%clk 0:01:58.8]} 31. Kf4 {[%clk 0:02:15.9]} 31...
Rb2 {[%clk 0:01:42.2]} 32. h4 {[%clk 0:01:57.8]} 32... Rxf2 {[%clk 0:01:37.6]}
33. Rc4 {[%clk 0:01:53.5]} 33... Rh2 {[%clk 0:01:28.4]} 34. Kg5 {[%clk
0:01:50.2]} 34... Rh3 {[%clk 0:01:19.9]} 35. Kg4 {[%clk 0:01:47.5]} 35... Rh2
{[%clk 0:01:10.8]} 36. Rc5 {[%clk 0:01:46.2]} 36... f5+ {[%clk 0:00:59.4]} 37.
Kg5 {[%clk 0:01:41.7]} 37... Rg2+ {[%clk 0:00:57.8]} 38. Kh6 {[%clk 0:01:37.8]}
38... Rg3 {[%clk 0:00:54.1]} 39. Rxa5 {[%clk 0:01:34.3]} 39... Rxf3 {[%clk
0:00:52.7]} 40. Ra7+ {[%clk 0:01:15.1]} 40... Kf6 {[%clk 0:00:51.3]} 41. a5
{[%clk 0:01:12]} 41... Rxe3 {[%clk 0:00:49.4]} 42. a6 {[%clk 0:01:11.4]} 42...
Ra3 {[%clk 0:00:44.6]} 43. Ra8 {[%clk 0:01:10.5]} 43... Kf7 {[%clk 0:00:41.4]}
44. Kg5 {[%clk 0:01:05.2]} 44... Kg7 {[%clk 0:00:33.4]} 45. Ra7+ {[%clk
0:01:03.6]} 45... Kf8 {[%clk 0:00:22.2]} 46. Kf6 {[%clk 0:01:03.2]} 46... Ke8
{[%clk 0:00:21.2]} 47. Kxe6 {[%clk 0:00:54.7]} 47... Kf8 {[%clk 0:00:19.9]} 48.
Kxf5 {[%clk 0:00:53.4]} 48... h5 {[%clk 0:00:15.6]} 49. Kf6 {[%clk 0:00:52.1]}
49... Kg8 {[%clk 0:00:14.6]} 50. Kg6 {[%clk 0:00:51.4]} 50... Kf8 {[%clk
0:00:12.8]} 51. Kxh5 {[%clk 0:00:49.8]} 51... Rg3 {[%clk 0:00:11.4]} 52. Rb7
{[%clk 0:00:47.8]} 1-0